bitfinex/quotes_SOLUSD_20240712
["timestamp","ask_amount","ask_price","bid_price","bid_amount"]
[1720780309248,36.9431,135.35,135.24,15.8635]
[1720780309249,18.4739,135.33,135.24,15.8635]
[1720780309450,7.3908,135.31,135.24,15.8635]
[1720780309654,7.39,135.32,135.24,15.8635]
[1720780309851,19.302933,135.36,135.24,15.8635]
[1720780309852,7.3884,135.35,135.24,15.8635]
[1720780310149,7.389,135.34,135.25,6.5324]
[1720780310531,7.3898,135.33,135.25,6.5324]
[1720780310953,18.4708,135.35,135.25,6.5324]
[1720780311137,15.26234838,135.36,135.25,6.5324]
[1720780311453,7.3893,135.33,135.25,6.5324]
[1720780311673,20.0,135.35,135.25,6.5324]
[1720780311674,7.3899,135.32,135.25,6.5324]
[1720780311853,7.3899,135.32,135.26,1.25466918]
[1720780312434,7.3904,135.31,135.26,1.25466918]
[1720780312759,7.3907,135.31,135.25,6.5324]
[1720780313134,7.391,135.3,135.25,6.5324]
[1720780313440,7.3916,135.29,135.25,6.5324]
[1720780313633,30.0,135.35,135.24,15.8635]
[1720780313634,46.9481,135.33,135.24,15.8635]
[1720780313837,75.62358459,135.32,135.24,15.8635]
[1720780314154,75.62358459,135.32,135.22,6.5966]
[1720780314155,18.4775,135.3,135.22,6.5966]
[1720780314333,7.3937,135.25,135.21,15.8243]
[1720780314729,7.3943,135.24,135.19,6.5966]
[1720780315558,7.3948,135.23,135.19,6.5966]
[1720780315937,7.3955,135.22,135.19,6.5966]
[1720780316131,27.3955,135.22,135.17,16.1083]
[1720780316866,20.0,135.22,135.17,16.1083]
[1720780317156,7.3946,135.24,135.17,16.1083]
[1720780317456,20.0,135.23,135.17,16.1083]
[1720780317638,7.3959,135.21,135.17,16.1083]
[1720780317841,7.3955,135.22,135.17,16.1083]
[1720780318049,20.0,135.21,135.17,16.1083]
[1720780318566,20.0,135.22,135.17,16.1083]
[1720780318859,27.3954,135.22,135.17,16.1083]
[1720780319362,20.0,135.22,135.17,16.1083]
[1720780320452,27.3951,135.23,135.17,16.1083]
[1720780320777,27.3949,135.23,135.17,16.1083]
[1720780321239,7.3953,135.22,135.17,16.1083]
[1720780321864,7.396,135.21,135.17,16.1083]
[1720780322069,7.3964,135.2,135.17,16.1083]
[1720780322365,7.396,135.21,135.17,16.1083]
[1720780322551,7.3955,135.22,135.17,16.1083]
[1720780322752,20.0,135.21,135.17,16.1083]
[1720780323142,7.3955,135.22,135.17,16.1083]
[1720780323339,7.73831184,135.26,135.17,16.1083]
[1720780323673,7.3965,135.2,135.17,16.1083]
[1720780324037,38.53103874,135.25,135.17,16.1083]
[1720780324038,7.3949,135.23,135.17,16.1083]
[1720780324239,20.0,135.22,135.17,16.1083]
[1720780324541,20.0,135.23,135.17,16.1083]
[1720780325142,7.3962,135.21,135.17,16.1083]
[1720780325877,7.3962,135.21,135.17,23.506]
[1720780326367,7.395,135.23,135.17,16.1083]
[1720780326742,7.3954,135.22,135.17,16.1083]
[1720780326964,7.3955,135.22,135.17,16.1083]
[1720780328338,7.3944,135.24,135.17,16.1083]
[1720780328649,7.3948,135.23,135.17,16.1083]
[1720780328962,7.3953,135.22,135.17,16.1083]
[1720780329344,38.53113874,135.25,135.17,16.1083]
[1720780330139,7.3943,135.24,135.17,16.1083]
[1720780330543,27.44073874,135.25,135.17,16.1083]
[1720780330961,7.3943,135.24,135.17,16.1083]
[1720780331164,7.3948,135.23,135.17,16.1083]
[1720780331468,7.3953,135.22,135.17,16.1083]
[1720780332272,7.395,135.23,135.17,16.1083]
[1720780333351,20.04683874,135.25,135.17,16.1083]
[1720780334053,7.3946,135.24,135.17,16.1083]
[1720780334367,7.3952,135.23,135.17,16.1083]
[1720780334681,7.3945,135.24,135.17,16.1083]
[1720780334972,7.3948,135.23,135.17,16.1083]
[1720780335147,38.53123874,135.25,135.17,16.1083]
[1720780335472,7.3954,135.22,135.17,16.1083]
[1720780335671,7.3949,135.23,135.17,16.1083]
[1720780335869,7.3944,135.24,135.17,16.1083]
[1720780336059,27.3948,135.23,135.17,16.1083]
[1720780336268,20.0,135.23,135.17,16.1083]
[1720780336579,0.04683874,135.25,135.17,16.1083]
[1720780336866,45.04683874,135.25,135.17,16.1083]
[1720780337070,20.0,135.24,135.17,16.1083]
[1720780337571,7.395,135.23,135.17,16.1083]
[1720780338146,7.396,135.21,135.17,16.1083]
[1720780338452,7.3949,135.23,135.17,16.1083]
[1720780340077,7.3944,135.24,135.17,16.1083]
[1720780340574,7.3948,135.23,135.19,14.74]
[1720780341469,22.1345,135.24,135.19,14.74]
[1720780341768,22.18073874,135.25,135.2,14.74]
[1720780342143,7.44073874,135.25,135.2,14.74]
[1720780342345,22.18073874,135.25,135.2,14.74]
[1720780343273,7.3949,135.23,135.18,1.4792051]
[1720780343575,7.3949,135.23,135.19,14.74]
[1720780344179,14.74,135.24,135.19,14.74]
[1720780344351,14.74,135.23,135.18,14.74]
[1720780344552,22.1349,135.23,135.18,14.74]
[1720780344780,22.1349,135.23,135.18,16.21843912]
[1720780344958,14.74,135.23,135.18,16.21843912]
[1720780345146,14.74,135.24,135.19,14.74]
[1720780345579,22.18093874,135.25,135.19,14.74]
[1720780345875,27.3942,135.24,135.19,14.74]
[1720780346254,42.1342,135.24,135.18,1.47843912]
[1720780346578,42.1342,135.24,135.19,14.74]
[1720780347264,20.0,135.24,135.2,14.74]
[1720780347467,7.73979699,135.26,135.23,16.401]
[1720780347770,14.74,135.27,135.23,16.401]
[1720780347973,22.1328,135.27,135.23,16.401]
[1720780348272,7.3932,135.26,135.23,16.401]
[1720780348479,22.1326,135.27,135.23,16.401]
[1720780349079,22.1332,135.26,135.23,16.401]
[1720780349471,14.74,135.24,135.21,6.6155]
[1720780349975,22.1346,135.24,135.21,6.6155]
[1720780350172,7.3946,135.24,135.21,6.6155]
[1720780350678,7.44073874,135.25,135.21,6.6155]
[1720780351556,7.3942,135.24,135.21,6.6155]
[1720780353586,7.44073874,135.25,135.21,6.6155]
[1720780353768,0.04683874,135.25,135.21,6.6155]
[1720780354458,7.44083874,135.25,135.21,6.6155]
[1720780355075,7.3944,135.24,135.2,16.3323]
[1720780355871,7.44073874,135.25,135.2,16.3323]
[1720780356069,0.04683874,135.25,135.2,16.3323]
[1720780356277,27.3927,135.27,135.2,17.81101722]
[1720780356478,20.0,135.27,135.2,16.3323]
[1720780356670,7.3934,135.26,135.2,16.3323]
[1720780356977,20.0,135.25,135.2,16.3323]
[1720780357770,27.3937,135.25,135.2,16.3323]
[1720780357971,7.3943,135.24,135.2,16.3323]
[1720780358396,20.0,135.25,135.2,16.3323]
[1720780358678,7.3935,135.26,135.2,16.3323]
[1720780358864,7.71553741,135.27,135.2,16.3323]
[1720780358865,7.3943,135.24,135.2,16.3323]
[1720780359068,7.3949,135.23,135.2,16.3323]
[1720780359752,7.3945,135.24,135.2,16.3323]
[1720780362861,7.3939,135.25,135.2,16.3323]
[1720780364083,7.3942,135.24,135.2,16.3323]
[1720780365280,0.04683874,135.26,135.2,16.3323]
[1720780365481,27.44033874,135.26,135.2,16.3323]
[1720780365997,7.3937,135.25,135.2,16.3323]
[1720780366203,20.0,135.24,135.2,16.3323]
[1720780368401,7.3959,135.21,135.2,16.3323]
[1720780368609,7.3954,135.22,135.2,16.3323]
[1720780370131,7.3959,135.21,135.2,16.3323]
[1720780370414,7.3959,135.21,135.18,6.2617]
[1720780370628,7.3964,135.2,135.18,6.2617]
[1720780370806,22.1469,135.19,135.17,15.0501]
[1720780371207,45.0,135.23,135.15,6.344]
[1720780371515,22.1491,135.16,135.13,15.7494]
[1720780371744,14.75,135.14,135.13,15.7494]
[1720780371905,34.75,135.14,135.1,23.1511]
[1720780372220,18.4989,135.15,135.1,15.7494]
[1720780372516,14.75,135.11,135.1,15.7494]
[1720780373122,7.4002,135.14,135.1,15.7494]
[1720780373299,34.75,135.13,135.1,15.7494]
[1720780373615,20.0,135.13,135.1,15.7494]
[1720780374317,34.75,135.13,135.1,15.7494]
[1720780374512,42.1502,135.13,135.1,15.7494]
[1720780374704,27.4002,135.13,135.1,15.7494]
[1720780375305,20.0,135.13,135.1,15.7494]
[1720780375518,20.0,135.13,135.1,23.1512]
[1720780376229,48.0248,135.18,135.11,7.4012]
[1720780376535,65.0,135.17,135.1,15.7494]
[1720780376702,7.4006,135.13,135.1,15.7494]
[1720780376902,7.4008,135.12,135.1,15.7494]
[1720780377622,18.4968,135.16,135.1,15.7494]
[1720780377623,7.4004,135.13,135.1,15.7494]
[1720780378827,7.3998,135.14,135.1,23.1513]
[1720780379007,20.0,135.13,135.1,23.1513]
[1720780379934,27.4004,135.13,135.1,15.7494]
[1720780380232,20.0,135.13,135.1,15.7494]
[1720780380413,20.0,135.13,135.1,23.1512]
[1720780380607,27.4002,135.13,135.1,15.7494]
[1720780380808,7.4009,135.12,135.1,15.7494]
[1720780381211,7.401,135.12,135.1,15.7494]
[1720780381605,20.0,135.13,135.1,23.1509]
[1720780382010,27.4003,135.13,135.1,15.7494]
[1720780382420,20.0,135.13,135.1,23.1511]
[1720780382723,45.0,135.17,135.1,15.7494]
[1720780382920,20.0,135.16,135.1,15.7494]
[1720780383238,20.0,135.16,135.12,7.4004]
[1720780383239,27.3987,135.16,135.12,7.4004]
[1720780383535,7.3992,135.15,135.11,7.4012]
[1720780383833,20.0,135.14,135.11,7.4012]
[1720780384046,2.7091998,135.18,135.12,7.4007]
[1720780384202,2.7091998,135.18,135.1,15.7494]
[1720780384203,10.0,135.23,135.1,15.7494]
[1720780384409,7.3956,135.22,135.18,7.3972]
[1720780384609,7.396,135.21,135.17,7.3978]
[1720780384807,18.4884,135.22,135.12,22.3271]
[1720780385227,7.3967,135.2,135.16,7.3983]
[1720780385426,7.3961,135.21,135.17,7.3979]
[1720780385630,20.0,135.2,135.12,22.3271]
[1720780385829,7.397,135.19,135.15,7.3989]
[1720780386004,20.0,135.18,135.15,7.3989]
[1720780386413,27.3976,135.18,135.14,7.3995]
[1720780387640,27.3976,135.18,135.12,22.3271]
[1720780387641,7.3982,135.17,135.13,7.4001]
[1720780388019,27.3977,135.18,135.14,7.3996]
[1720780388536,20.0,135.18,135.12,22.3271]
[1720780388734,20.0,135.19,135.12,22.3271]
[1720780388940,7.3986,135.16,135.12,22.3271]
[1720780389231,52.3975,135.18,135.12,22.3271]
[1720780389437,20.0,135.17,135.15,7.3991]
[1720780389638,20.0,135.17,135.12,22.3271]
[1720780389939,27.3985,135.17,135.13,7.4]
[1720780390116,7.3985,135.17,135.13,7.4]
[1720780390318,7.3988,135.16,135.12,22.3271]
[1720780391611,7.3983,135.17,135.13,7.4002]
[1720780392131,7.3983,135.17,135.09,15.5053]
[1720780392132,20.0,135.16,135.09,15.5053]
[1720780392322,52.3994,135.15,135.11,7.4013]
[1720780393122,27.3987,135.16,135.12,7.4007]
[1720780393515,7.3992,135.15,135.11,7.4011]
[1720780393919,27.3988,135.16,135.12,7.4007]
[1720780394263,27.3988,135.16,135.13,7.4002]
[1720780394460,20.0,135.16,135.13,7.4002]
[1720780395816,27.3986,135.16,135.12,7.4005]
[1720780396718,20.0,135.16,135.13,7.4]
[1720780398036,27.3986,135.16,135.12,7.4008]
[1720780398248,27.3986,135.16,135.09,15.5053]
[1720780398249,7.3992,135.15,135.11,7.4011]
[1720780398543,7.3997,135.14,135.1,7.4017]
[1720780398750,7.3994,135.15,135.11,7.4012]
[1720780399543,7.3994,135.15,135.09,15.5053]
[1720780399544,27.3988,135.16,135.12,7.4007]
[1720780400242,7.3992,135.15,135.11,7.4011]
[1720780400437,7.3998,135.14,135.1,7.4017]
[1720780400638,20.0,135.16,135.09,15.5053]
[1720780400639,38.4967,135.16,135.09,15.5053]
[1720780400844,7.4005,135.13,135.09,22.9076]
[1720780401028,7.4014,135.11,135.08,7.4027]
[1720780401216,7.4014,135.11,135.06,16.6305]
[1720780401217,7.4014,135.11,135.07,7.4033]
[1720780401650,27.401,135.12,135.08,7.4029]
[1720780401828,27.401,135.12,135.09,7.4024]
[1720780402015,20.0,135.12,135.09,7.4024]
[1720780403332,27.4008,135.12,135.09,7.4024]
[1720780403547,20.0,135.12,135.1,7.4018]
[1720780404065,20.0,135.13,135.11,7.401]
[1720780404345,27.4,135.14,135.1,7.4018]
[1720780404554,27.3999,135.14,135.1,7.4018]
[1720780404920,20.0,135.14,135.11,7.4011]
[1720780405121,20.0,135.16,135.1,7.4018]
[1720780405361,7.3992,135.15,135.11,7.4013]
[1720780405530,27.3998,135.14,135.1,7.4016]
[1720780406134,7.4004,135.13,135.06,16.6305]
[1720780406319,27.4009,135.12,135.06,16.6305]
[1720780406524,7.4009,135.12,135.08,7.4026]
[1720780407962,7.4005,135.13,135.09,7.4023]
[1720780408249,20.0,135.12,135.1,7.4019]
[1720780408641,20.0,135.12,135.11,7.4013]
[1720780409132,20.0,135.12,135.1,7.4017]
[1720780409341,20.0,135.13,135.1,7.4017]
[1720780409552,20.0,135.13,135.11,7.4012]
[1720780409726,20.0,135.13,135.06,16.6305]
[1720780409727,7.3997,135.14,135.1,7.4017]
[1720780409929,27.4003,135.13,135.09,7.4022]
[1720780410236,7.4008,135.12,135.09,7.4022]
[1720780410442,27.4005,135.13,135.09,7.4022]
[1720780410645,7.4008,135.12,135.09,7.4022]
[1720780411152,27.4005,135.13,135.09,7.4023]
[1720780411537,20.0,135.13,135.1,7.4018]
[1720780411854,27.4003,135.13,135.09,7.4022]
[1720780412456,27.4003,135.13,135.1,7.4018]
[1720780412843,27.4003,135.13,135.09,7.4023]
[1720780413226,7.4008,135.12,135.09,7.4023]
[1720780413431,7.4008,135.12,135.06,16.6305]
[1720780413432,7.4008,135.12,135.08,7.4028]
[1720780413842,7.4011,135.12,135.08,7.4028]
[1720780414154,7.4011,135.12,135.06,16.6305]
[1720780414155,27.4004,135.13,135.09,7.4023]
[1720780414453,7.70768948,135.15,135.12,16.6074]
[1720780414749,2.75437022,135.19,135.13,7.3999]
[1720780414750,7.3984,135.17,135.13,7.3999]
[1720780416054,20.0,135.16,135.13,7.3999]
[1720780416854,20.0,135.17,135.13,7.3999]
[1720780417461,27.3981,135.17,135.13,7.3999]
[1720780417756,7.3986,135.16,135.12,24.008]
[1720780419069,27.3983,135.17,135.13,7.3999]
[1720780419358,20.0,135.17,135.13,7.3999]
[1720780419552,7.3977,135.18,135.14,7.3996]
[1720780419735,27.3982,135.17,135.13,7.4]
[1720780419936,7.3982,135.17,135.13,7.4]
[1720780422649,20.0,135.19,135.12,18.08478448]
[1720780422863,7.3975,135.18,135.15,14.75]
[1720780423052,7.3969,135.19,135.15,14.75]
[1720780423235,34.75,135.2,135.15,14.75]
[1720780424055,14.75,135.19,135.14,14.75]
[1720780424279,7.3983,135.17,135.13,7.3999]
[1720780424760,7.3983,135.17,135.13,22.1499]
[1720780426174,22.1477,135.18,135.14,7.3995]
[1720780426379,20.0,135.17,135.15,7.3991]
[1720780426545,20.0,135.17,135.14,7.3994]
[1720780426739,20.0,135.17,135.12,16.6074]
[1720780426935,7.3983,135.17,135.13,7.3999]
[1720780427135,20.0,135.18,135.13,7.3999]
[1720780427364,27.3977,135.18,135.14,7.3997]
[1720780428164,27.3977,135.18,135.12,16.6074]
[1720780428165,20.0,135.18,135.12,16.6074]
[1720780428351,7.3987,135.16,135.12,24.0078]
[1720780428955,7.3993,135.15,135.11,7.4012]
[1720780430145,7.3988,135.16,135.12,7.4008]
[1720780430449,20.0,135.15,135.12,7.4008]
[1720780430761,20.0,135.15,135.13,7.4002]
[1720780430967,20.0,135.16,135.13,7.4002]
[1720780431578,27.3987,135.16,135.12,7.4006]
[1720780432271,20.0,135.16,135.13,7.4002]
[1720780432641,7.4003,135.13,135.09,7.4022]
[1720780432872,7.3998,135.14,135.1,7.4018]
[1720780433045,7.3994,135.15,135.1,7.4018]
[1720780434071,7.3994,135.15,135.11,7.4012]
[1720780434271,34.1363616,135.16,135.12,7.4008]
[1720780434648,34.1363616,135.16,135.11,7.4011]
[1720780435572,7.3998,135.14,135.1,7.4018]
[1720780436071,20.0,135.13,135.05,6.4993]
[1720780436653,20.0,135.14,135.05,6.4993]
[1720780437077,26.7375616,135.14,135.05,6.4993]
[1720780437455,7.401,135.12,135.08,7.4028]
[1720780437661,20.0,135.11,135.08,7.4028]
[1720780439164,21.85911694,135.14,135.05,6.4993]
[1720780439366,7.72165534,135.14,135.11,7.4011]
[1720780439579,7.3995,135.15,135.11,7.4011]
[1720780440071,7.71516931,135.17,135.13,7.4002]
[1720780440380,7.3988,135.16,135.12,7.4006]
[1720780440778,15.11326931,135.17,135.13,7.4002]
[1720780440952,6.7375616,135.18,135.11,6.6359]
[1720780441358,20.0,135.17,135.14,7.3995]
[1720780441567,20.0,135.17,135.13,7.4]
[1720780442097,20.0,135.17,135.14,7.3997]
[1720780442458,6.7375616,135.18,135.15,7.3991]
[1720780442663,7.3965,135.2,135.11,6.6359]
[1720780442862,7.397,135.19,135.15,7.3988]
[1720780443063,7.3975,135.18,135.14,7.3995]
[1720780443587,7.71943206,135.21,135.11,8.11574608]
[1720780443887,7.3968,135.2,135.16,7.3985]
[1720780445487,20.0,135.19,135.16,7.3985]
[1720780446189,15.11533206,135.21,135.17,7.3979]
[1720780446489,27.3964,135.2,135.16,22.4726]
[1720780446819,27.3964,135.2,135.16,15.0742]
[1720780446964,7.3971,135.19,135.16,15.0742]
[1720780447666,27.3966,135.2,135.16,22.4726]
[1720780449288,7.3976,135.18,135.16,15.0742]
[1720780449888,7.3971,135.19,135.16,15.0742]
[1720780450470,7.3975,135.18,135.16,15.0742]
[1720780450675,7.397,135.19,135.16,15.0742]
[1720780451186,7.3976,135.18,135.16,15.0742]
[1720780451782,7.3972,135.19,135.16,15.0742]
[1720780453296,20.0,135.2,135.16,37.2226]
[1720780453297,27.3967,135.2,135.16,37.2226]
[1720780455501,27.3967,135.2,135.17,22.148]
[1720780455800,27.3967,135.2,135.17,14.75]
[1720780456199,7.3969,135.19,135.17,14.75]
[1720780456588,7.3975,135.18,135.16,15.0742]
[1720780456899,7.3975,135.18,135.16,29.8242]
[1720780457103,7.3971,135.19,135.16,29.8242]
[1720780457486,7.3971,135.19,135.17,14.75]
[1720780458486,27.3965,135.2,135.17,14.75]
[1720780460775,28.96944222,135.24,135.17,14.75]
[1720780460978,7.72507648,135.24,135.21,22.5372]
[1720780461276,53.3002,135.31,135.23,14.75]
[1720780461277,7.3923,135.28,135.23,14.75]
[1720780461593,7.3923,135.28,135.25,14.75]
[1720780463580,7.3929,135.27,135.25,14.75]
[1720780464195,7.3929,135.27,135.24,14.75]
[1720780464710,7.3929,135.27,135.22,1.47905835]
[1720780465682,7.3929,135.27,135.21,24.01608327]
[1720780467213,7.394,135.25,135.21,22.5372]
[1720780467403,7.3933,135.26,135.21,22.5372]
[1720780469417,7.3927,135.27,135.21,22.5372]
[1720780469597,20.0,135.26,135.21,22.5372]
[1720780470091,7.3922,135.28,135.21,22.5372]
[1720780470289,20.0,135.27,135.22,1.47890957]
[1720780473901,14.1292616,135.29,135.22,1.47890957]
[1720780474910,14.1292616,135.29,135.22,30.93890957]
[1720780475489,7.392,135.28,135.22,30.93890957]
[1720780476009,14.1292616,135.29,135.22,30.93890957]
[1720780477711,14.1292616,135.29,135.23,15.1936]
[1720780479021,6.7375616,135.29,135.23,15.1936]
[1720780479225,6.7375616,135.33,135.24,6.4485]
[1720780479394,7.3907,135.31,135.24,6.4485]
[1720780479601,27.391,135.3,135.24,6.4485]
[1720780479915,7.391,135.3,135.24,6.4485]
[1720780480087,20.0,135.29,135.24,6.4485]
[1720780480721,27.391,135.3,135.24,6.4485]
[1720780481499,20.0,135.3,135.24,6.4485]
[1720780483210,27.3911,135.3,135.24,6.4485]
[1720780484217,20.0,135.3,135.24,6.4485]
[1720780484424,7.3904,135.31,135.24,6.4485]
[1720780484630,7.3904,135.31,135.24,35.9085]
[1720780484921,7.3904,135.31,135.25,1.47837774]
[1720780485501,7.39,135.32,135.26,15.5913]
[1720780485918,6.7375616,135.33,135.26,15.5913]
[1720780486512,6.7375616,135.33,135.26,45.0513]
[1720780486718,7.3888,135.34,135.3,14.72]
[1720780486900,7.3888,135.34,135.3,20.8926]
[1720780487432,37.36654001,135.36,135.32,14.72]
[1720780487592,14.9578946,135.36,135.32,14.72]
[1720780489207,7.3883,135.35,135.32,14.72]
[1720780489414,7.3883,135.35,135.31,30.6712]
[1720780489733,7.5701946,135.36,135.32,14.71]
[1720780490237,0.832633,135.36,135.31,15.9612]
[1720780490526,0.832633,135.36,135.31,74.8012]
[1720780490723,0.832633,135.36,135.35,14.71]
[1720780491093,0.832633,135.36,135.35,21.3049]
[1720780491511,0.832633,135.36,135.35,6.5949]
[1720780491722,0.832633,135.36,135.35,21.3049]
[1720780492822,0.832633,135.36,135.32,6.4272]
[1720780493330,14.71,135.35,135.31,15.9612]
[1720780493503,22.0983,135.35,135.31,15.9612]
[1720780494023,34.71,135.34,135.31,15.9612]
[1720780494221,42.0989,135.34,135.31,15.9612]
[1720780494426,34.71,135.34,135.31,15.9612]
[1720780495002,14.71,135.34,135.29,6.4063]
[1720780495215,14.71,135.34,135.29,21.1163]
[1720780495612,22.0988,135.34,135.29,21.1163]
[1720780496504,7.3888,135.34,135.29,6.4063]
[1720780496923,7.3883,135.35,135.29,6.4063]
[1720780497123,20.0,135.34,135.29,6.4063]
[1720780497321,27.3888,135.34,135.29,6.4063]
[1720780497508,7.3894,135.33,135.28,15.2196]
[1720780497704,7.3903,135.32,135.25,6.6285]
[1720780497927,20.0,135.31,135.25,6.6285]
[1720780499116,7.3895,135.33,135.25,6.6285]
[1720780499117,20.0,135.32,135.25,6.6285]
[1720780499924,27.3901,135.32,135.25,6.6285]
[1720780500224,7.3905,135.31,135.25,6.6285]
[1720780500438,20.0,135.3,135.25,6.6285]
[1720780501025,20.0,135.31,135.25,6.6285]
[1720780501536,7.3925,135.28,135.22,6.6522]
[1720780501708,45.0,135.3,135.22,6.6522]
[1720780501709,7.3916,135.29,135.22,6.6522]
[1720780501909,20.0,135.29,135.23,0.3809307]
[1720780502112,20.0,135.31,135.24,16.73410253]
[1720780502634,20.0,135.32,135.24,16.73410253]
[1720780502805,7.3889,135.34,135.25,29.44]
[1720780503005,7.3889,135.34,135.26,1.47825603]
[1720780503210,7.3894,135.33,135.26,1.47814677]
[1720780503645,7.3899,135.32,135.25,1.47839558]
[1720780504118,7.3899,135.32,135.24,16.3532]
[1720780504119,7.3899,135.32,135.24,17.83159558]
[1720780506009,7.3895,135.33,135.24,17.83159558]
[1720780506208,20.0,135.32,135.24,17.83159558]
[1720780506920,7.3898,135.33,135.24,17.83159558]
[1720780507124,20.0,135.32,135.24,17.83159558]
[1720780507304,7.3895,135.33,135.24,17.83159558]
[1720780507506,20.0,135.32,135.24,17.83159558]
[1720780508150,3.55638316,135.36,135.26,44.548]
[1720780508151,0.832633,135.36,135.26,44.548]
[1720780508315,0.832633,135.36,135.27,6.1719]
[1720780508509,0.832633,135.36,135.28,44.8637]
[1720780508706,0.832633,135.36,135.29,6.4562]
[1720780509433,0.832633,135.36,135.3,47.31757733]
[1720780511934,0.832633,135.36,135.31,45.0]
[1720780512112,0.832633,135.36,135.32,1.47760378]
[1720780513241,0.832633,135.36,135.31,1.47771758]
[1720780513627,0.832633,135.36,135.3,45.8397]
[1720780515336,0.832633,135.36,135.31,1.47159284]
[1720780516019,0.832633,135.36,135.3,45.8397]
[1720780516218,0.832633,135.36,135.3,16.3997]
[1720780516946,0.832633,135.36,135.3,17.87667859]
[1720780518324,0.832633,135.36,135.3,16.3997]
[1720780518628,45.832633,135.36,135.3,16.3997]
[1720780518828,20.0,135.35,135.3,16.3997]
[1720780519940,0.832633,135.36,135.3,16.3997]
[1720780522523,0.832633,135.36,135.3,17.87755666]
[1720780525227,0.832633,135.36,135.3,17.87755572]
[1720780527457,0.832633,135.36,135.31,45.0]
[1720780527633,0.832633,135.36,135.32,1.47759986]
[1720780528332,0.832633,135.36,135.31,45.0]
[1720780528544,0.832633,135.36,135.32,21.7523]
[1720780528733,0.832633,135.36,135.32,51.1923]
[1720780530046,0.832633,135.36,135.33,0.58134379]
[1720780530249,0.832633,135.36,135.33,45.58134379]
[1720780530641,0.832633,135.36,135.34,0.88409463]
[1720780530958,6.7375616,135.41,135.35,22.641]
[1720780531155,6.7375616,135.41,135.36,0.97212204]
[1720780531529,6.7375616,135.41,135.35,22.641]
[1720780532429,7.3834,135.44,135.35,22.641]
[1720780532752,20.0,135.43,135.35,22.641]
[1720780534644,20.0,135.43,135.39,14.7]
[1720780535464,20.0,135.43,135.4,14.7]
[1720780535667,20.0,135.44,135.4,14.7]
[1720780536665,27.3834,135.44,135.4,14.7]
[1720780537037,42.0834,135.44,135.39,14.7]
[1720780537444,7.3841,135.43,135.39,14.7]
[1720780537944,20.0,135.44,135.4,14.7]
[1720780538242,0.04391974,135.45,135.41,14.7]
[1720780538451,20.04391974,135.45,135.41,14.7]
[1720780539360,27.42681974,135.45,135.41,14.7]
[1720780540067,42.12681974,135.45,135.4,14.7]
[1720780540254,27.42681974,135.45,135.41,14.7]
[1720780540641,27.42681974,135.45,135.36,29.85329445]
[1720780541259,20.04391974,135.45,135.36,29.39]
[1720780541458,0.04391974,135.45,135.37,61.55518675]
[1720780541656,20.04391974,135.45,135.37,61.55518675]
[1720780542045,0.04391974,135.45,135.38,50.7291]
[1720780542263,0.04391974,135.45,135.4,29.39]
[1720780542572,0.04391974,135.45,135.41,1.47362977]
[1720780546961,0.04391974,135.45,135.4,29.39]
[1720780547163,0.04391974,135.45,135.38,50.7291]
[1720780549267,0.04391974,135.45,135.38,21.3391]
[1720780549567,20.04391974,135.45,135.38,21.3391]